bitfinex-derivatives/quotes_BNBF0:USTF0_20251203
["timestamp","ask_amount","ask_price","bid_price","bid_amount"]
[1764802951635,1.05918861,921.37,920.83,0.987]
[1764802952132,1.05918861,921.41,920.83,0.987]
[1764802953136,1.05918861,921.43,920.83,0.987]
[1764802953336,1.05918861,921.44,920.83,0.987]
[1764802953538,1.05918861,921.45,920.83,0.987]
[1764802953738,1.05918861,921.65,920.83,0.987]
[1764802954333,1.05918861,921.66,920.83,0.987]
[1764802955233,1.05918861,921.27,920.83,0.987]
[1764802955439,1.05918861,921.28,920.83,0.987]
[1764802956035,1.05918861,921.31,920.83,0.987]
[1764802956336,1.05918861,921.32,920.83,0.987]
[1764802956938,1.05918861,921.33,920.83,0.987]
[1764802957338,1.05918861,921.36,920.83,0.987]
[1764802957635,2.71786809,922.18,920.83,0.987]
[1764802957636,1.05918861,921.33,920.83,0.987]
[1764802958237,1.05918861,921.37,920.83,0.987]
[1764802959242,1.05918861,921.39,920.83,0.987]
[1764802959742,1.05918861,921.41,920.83,0.987]
[1764802960141,1.05918861,921.43,920.83,0.987]
[1764802960338,1.05918861,921.44,920.83,0.987]
[1764802961239,1.05918861,921.46,920.83,0.987]
[1764802961742,1.05918861,921.47,920.83,0.987]
[1764802961942,1.05918861,921.48,920.83,0.987]
[1764802962144,1.05918861,921.49,920.83,0.987]
[1764802962438,1.05918861,921.51,920.83,0.987]
[1764802962639,3.80501533,922.64,920.83,0.987]
[1764802962640,1.05918861,921.7,920.83,0.987]
[1764802963238,1.05918861,921.71,920.83,0.987]
[1764802963743,1.05918861,921.69,920.83,0.987]
[1764802966442,1.05918861,921.71,920.83,0.987]
[1764802966841,1.05918861,921.73,920.83,0.987]
[1764802968142,1.05918861,921.72,920.83,0.987]
[1764802968739,1.05918861,921.77,920.83,0.987]
[1764802969637,1.05918861,921.78,920.83,0.987]
[1764802969843,1.05918861,921.79,920.83,0.987]
[1764802970343,1.05918861,921.78,920.83,0.987]
[1764802970545,1.05918861,922.5,920.83,0.987]
[1764802970840,1.05918861,922.63,920.83,0.987]
[1764802971044,1.05918861,922.61,920.83,0.987]
[1764802971544,1.05918861,922.46,920.83,0.987]
[1764802971740,1.05918861,922.46,920.64,0.863]
[1764802972244,1.05918861,922.36,920.64,0.863]
[1764802972443,1.05918861,921.97,920.64,0.863]
[1764802972643,1.05918861,921.96,920.64,0.863]
[1764802973143,1.05918861,921.91,920.64,0.863]
[1764802974048,1.05918861,921.91,920.65,1.255]
[1764802974246,1.05918861,921.87,920.65,1.255]
[1764802974443,1.05918861,921.84,920.65,1.255]
[1764802975142,1.05918861,921.83,920.65,1.255]
[1764802975346,1.05918861,921.73,920.65,1.255]
[1764802976344,1.05918861,921.68,920.65,1.255]
[1764802977345,2.71786809,922.51,920.65,1.255]
[1764802977346,1.05918861,921.62,920.65,1.255]
[1764802978042,1.05918861,921.46,920.65,1.255]
[1764802978248,1.05918861,921.4,920.65,1.255]
[1764802978448,1.05918861,921.31,920.65,1.255]
[1764802979350,1.05918861,921.26,920.65,1.255]
[1764802980448,1.05918861,921.28,920.65,1.255]
[1764802981249,1.05918861,921.25,920.65,1.255]
[1764802981452,1.05918861,921.24,920.65,1.255]
[1764802982254,1.05918861,921.17,920.65,1.255]
[1764802982550,1.05918861,921.21,920.65,1.255]
[1764802983254,1.05918861,921.16,920.65,1.255]
[1764802983450,1.05918861,921.13,920.65,1.255]
[1764802984252,1.05918861,921.06,920.65,1.255]
[1764802984650,1.05918861,921.04,920.65,1.255]
[1764802985356,1.05918861,920.98,920.65,1.255]
[1764802985752,1.05918861,920.97,920.65,1.255]
[1764802985954,1.05918861,920.95,920.65,1.255]
[1764802986259,1.05918861,920.92,920.65,1.255]
[1764802986857,1.05918861,920.93,920.65,1.255]
[1764802987355,1.05918861,920.88,920.65,1.255]
[1764802988159,1.05918861,920.83,920.65,1.255]
[1764802989162,1.05918861,920.78,920.65,1.255]
[1764802989760,1.05918861,920.71,920.65,1.255]
[1764802990164,1.62410571,920.69,920.65,1.255]
[1764802991463,2.71786809,921.29,920.65,1.255]
[1764802993061,2.71786809,921.29,920.65,0.03949356]
[1764802993466,2.71786809,921.23,920.65,0.03949356]
[1764802993962,2.71786809,921.28,920.65,0.03949356]
[1764802994565,2.71786809,921.29,920.65,0.03949356]
[1764802995663,2.71786809,921.3,920.65,0.03949356]
[1764802996662,2.71786809,921.31,920.65,0.03949356]
[1764802997062,2.71786809,921.31,920.44,1.342]
[1764802997267,1.07621957,920.5,920.44,1.342]
[1764802997968,1.61432936,920.56,920.44,1.342]
[1764802998163,3.80501533,921.66,920.44,1.342]
[1764802998164,1.61432936,920.58,920.44,1.342]
[1764802998967,1.61432936,920.61,920.44,1.342]
[1764802999165,1.07544549,920.45,920.44,1.342]
[1764802999364,1.07544549,920.47,920.44,1.342]
[1764803000468,1.07544549,920.48,920.44,1.342]
[1764803000866,1.07544549,920.62,920.44,1.342]
[1764803001071,1.07544549,920.61,920.44,1.342]
[1764803001272,1.07544549,920.63,920.44,1.342]
[1764803002177,1.07544549,920.64,920.44,1.342]
[1764803002473,1.07544549,920.59,920.44,1.342]
[1764803002973,1.07544549,920.6,920.44,1.342]
[1764803003171,1.07544549,920.73,920.44,1.342]
[1764803004173,1.07544549,920.72,920.44,1.342]
[1764803005172,1.07544549,920.71,920.44,1.342]
[1764803006175,1.07544549,920.69,920.44,1.342]
[1764803007778,1.07544549,920.7,920.44,1.342]
[1764803007977,1.07544549,920.79,920.44,1.342]
[1764803008177,1.07544549,920.8,920.44,1.342]
[1764803008381,1.07544549,920.81,920.44,1.342]
[1764803009382,1.07544549,921.11,920.44,1.342]
[1764803010482,1.07544549,921.01,920.44,1.342]
[1764803011180,1.07544549,921.02,920.44,1.342]
[1764803011382,1.07544549,921.01,920.44,1.342]
[1764803012383,1.07544549,921.0,920.44,1.342]
[1764803012880,1.07544549,921.04,920.44,1.342]
[1764803013284,1.07544549,921.07,920.44,1.342]
[1764803013779,1.07544549,921.1,920.44,1.342]
[1764803014284,1.07544549,921.09,920.44,1.342]
[1764803014884,1.07544549,920.98,920.44,1.342]
[1764803015383,1.07544549,920.95,920.44,1.342]
[1764803018979,1.07544549,920.96,920.44,1.342]
[1764803020085,1.07544549,921.03,920.44,1.342]
[1764803020285,3.80501533,922.12,920.44,1.342]
[1764803020286,1.07544549,921.05,920.44,1.342]
[1764803020584,1.07544549,921.03,920.44,1.342]
[1764803022384,1.07544549,921.05,920.44,1.342]
[1764803022781,1.07544549,921.13,920.44,1.342]
[1764803022985,1.07544549,921.0,920.44,1.342]
[1764803023182,1.07544549,920.97,920.44,1.342]
[1764803023387,1.07544549,920.69,920.44,1.342]
[1764803023887,1.07544549,920.58,920.44,1.342]
[1764803025189,1.07544549,920.6,920.44,1.342]
[1764803026290,1.07544549,920.59,920.44,1.342]
[1764803026488,1.07544549,920.57,920.44,1.342]
[1764803026989,1.07544549,920.61,920.44,1.342]
[1764803027290,1.07544549,920.65,920.44,1.342]
[1764803027789,1.07544549,920.68,920.44,1.342]
[1764803028489,1.07544549,920.67,920.44,1.342]
[1764803028694,1.07544549,920.68,920.44,1.342]
[1764803028890,1.07544549,920.58,920.44,1.342]
[1764803029295,1.07544549,920.46,920.44,1.342]
[1764803029493,1.07544549,920.45,920.44,1.342]
[1764803030898,1.61432936,920.6,920.44,1.342]
[1764803031098,1.61432936,920.57,920.44,1.342]
[1764803031298,2.71786809,921.23,920.44,1.342]
[1764803031793,2.71786809,921.07,920.44,1.342]
[1764803032094,2.71786809,920.89,920.44,0.14827019]
[1764803032694,2.71786809,920.85,920.44,0.14827019]
[1764803033195,2.71786809,920.89,920.44,0.14827019]
[1764803033597,2.71786809,920.9,920.44,0.14827019]
[1764803034198,2.71786809,920.92,920.44,0.14827019]
[1764803035894,2.71786809,920.9,920.44,0.14827019]
[1764803036299,2.71786809,920.89,920.44,0.14827019]
[1764803036901,2.71786809,920.86,920.44,0.14827019]
[1764803037802,2.71786809,920.75,919.77,1.183]
[1764803038000,1.07874344,919.92,918.85,0.00985871]
[1764803038205,1.07874344,919.95,918.44,0.78604101]
[1764803039104,1.07874344,919.97,918.43,0.78604101]
[1764803039605,1.07874344,920.06,918.52,0.78604101]
[1764803039902,1.07874344,920.11,918.56,0.78604101]
[1764803040206,1.07874344,920.2,918.66,0.78604101]
[1764803041303,1.07874344,920.21,918.65,0.78604101]
[1764803041602,1.07874344,920.18,918.62,0.78604101]
[1764803041906,1.07874344,920.07,918.53,1.148]
[1764803042104,1.07874344,919.96,918.53,1.148]
[1764803042906,1.07874344,919.96,918.54,1.108]
[1764803043108,1.07874344,919.98,918.54,1.108]
[1764803043607,1.07874344,919.97,918.54,1.108]
[1764803044206,1.07874344,919.99,918.54,1.108]
[1764803044406,1.07874344,919.94,918.54,1.108]
[1764803045206,1.07874344,919.95,918.54,1.108]
[1764803045402,1.07874344,919.85,918.54,1.108]
[1764803045707,1.07874344,919.83,918.54,1.108]
[1764803045908,1.07874344,919.7,918.54,1.108]
[1764803046204,1.07874344,919.74,918.54,1.108]
[1764803047107,1.07874344,919.77,918.54,1.108]
[1764803047307,1.07874344,919.78,918.54,1.108]
[1764803047707,1.07874344,919.8,918.54,1.108]
[1764803048108,1.07874344,919.85,918.54,1.108]
[1764803048308,1.07874344,919.83,918.54,1.108]
[1764803049210,1.07874344,919.86,918.54,1.108]
[1764803050210,1.07874344,919.87,918.54,1.108]
[1764803050406,1.07874344,919.79,918.54,1.108]
[1764803050706,1.07874344,919.72,918.54,1.108]
[1764803051107,1.07874344,919.75,918.54,1.108]
[1764803051404,1.07874344,919.76,918.54,1.108]
[1764803051607,1.07874344,919.65,918.54,1.108]
[1764803051906,1.07874344,919.54,918.54,1.108]
[1764803052110,1.07874344,919.59,918.54,1.108]
[1764803053214,1.07874344,919.63,918.54,1.108]
[1764803053408,1.07874344,919.61,918.54,1.108]
[1764803053610,1.07874344,919.57,918.54,1.108]
[1764803053807,1.07874344,919.59,918.54,1.108]
[1764803054206,1.07874344,919.64,918.54,1.108]
[1764803054411,1.07874344,919.62,918.54,1.108]
[1764803054709,1.07874344,919.64,918.54,1.108]
[1764803055313,1.07874344,919.68,918.54,1.108]
[1764803056215,1.07874344,919.76,918.54,1.108]
[1764803056615,1.07874344,919.79,918.54,1.108]
[1764803057111,1.07874344,919.84,918.54,1.108]
[1764803057318,1.07874344,919.86,918.54,1.108]
[1764803057816,1.07874344,919.84,918.54,1.108]
[1764803058318,1.07874344,919.87,918.54,1.108]
[1764803059217,2.71786809,920.69,918.54,1.108]
[1764803059218,0.18935272,919.54,918.54,1.108]
[1764803060318,0.18935272,919.54,918.55,1.231]
[1764803066025,1.07874344,920.22,918.55,1.231]
[1764803066229,0.18930843,919.65,918.55,1.231]
[1764803066526,1.07874344,920.24,918.55,1.231]
[1764803066731,0.18930688,919.6,918.55,1.231]
[1764803066926,1.07874344,920.24,918.55,1.231]
[1764803067730,1.07874344,920.27,918.55,1.231]
[1764803068133,0.18929967,919.85,918.55,1.231]
[1764803079632,1.07874344,919.73,918.55,1.231]
[1764803080231,1.07874344,919.69,918.55,1.231]
[1764803081335,1.07874344,919.65,918.55,1.231]
[1764803082237,1.07874344,919.6,918.55,1.231]
[1764803083033,1.07874344,919.56,918.55,1.231]
[1764803083236,1.07874344,919.5,918.55,1.231]
[1764803083532,1.07874344,919.44,918.55,1.231]
[1764803083737,1.07874344,919.46,918.55,1.231]
[1764803084237,1.07874344,919.44,918.55,1.231]
[1764803084436,1.07874344,919.44,918.56,1.233]
[1764803084632,1.07874344,919.43,918.56,1.233]
[1764803085337,1.07874344,919.41,918.56,1.233]
[1764803085738,1.07874344,919.4,918.56,1.233]
[1764803086140,1.07874344,919.41,918.56,1.233]
[1764803086339,1.07874344,919.38,918.56,1.233]
[1764803086737,1.07874344,919.28,918.56,1.233]
[1764803087041,1.07874344,919.27,918.56,1.233]
[1764803087237,1.07874344,919.2,918.56,1.233]
[1764803087438,1.07874344,919.14,918.56,1.233]
[1764803087637,1.07874344,919.13,918.56,1.233]
[1764803088041,1.07874344,919.06,918.56,1.233]
[1764803088241,1.07874344,919.03,918.56,1.233]
[1764803088838,1.07874344,919.01,918.56,1.233]
[1764803089337,1.07874344,918.98,918.56,1.233]
[1764803089839,1.07874344,918.84,918.56,1.233]
[1764803090237,1.07874344,918.83,918.56,1.233]
[1764803091042,2.71786809,919.66,918.56,1.233]
[1764803091043,1.07874344,918.81,918.56,1.233]
[1764803091242,1.07874344,918.8,918.56,1.233]
[1764803091741,1.07874344,918.81,918.56,1.233]
[1764803092141,1.07874344,918.83,918.56,1.233]
[1764803092339,1.07874344,918.82,918.56,1.233]
[1764803092643,1.07874344,918.81,918.56,1.233]
[1764803093145,1.07874344,918.83,918.56,1.233]
[1764803093342,1.07874344,918.82,918.56,1.233]
[1764803093739,1.07874344,918.87,918.56,1.233]
[1764803094044,1.07874344,918.89,918.56,1.233]
[1764803095040,1.07874344,918.96,918.56,1.233]
[1764803095245,1.07874344,918.95,918.56,1.233]
[1764803096144,1.07874344,918.96,918.56,1.233]
[1764803096344,1.07874344,918.94,918.56,1.233]
[1764803097146,1.07874344,918.95,918.56,1.233]
[1764803097445,1.07874344,918.93,918.56,1.233]
[1764803098145,1.07874344,918.92,918.56,1.233]
[1764803099444,1.07874344,918.91,918.56,1.233]
[1764803101244,1.07874344,918.92,918.56,1.233]
[1764803101548,1.07874344,918.88,918.56,1.233]
[1764803102149,1.07874344,918.87,918.56,1.233]
[1764803102351,1.07874344,918.9,918.56,1.233]
[1764803102547,1.07874344,918.97,918.56,1.233]
[1764803102752,1.07874344,919.15,918.56,1.233]
[1764803103051,1.07874344,919.19,918.56,1.233]
[1764803103245,1.07874344,919.17,918.56,1.233]
[1764803103446,1.07874344,919.12,918.56,1.233]
[1764803103649,0.18929967,919.85,918.56,1.233]
[1764803103650,1.07874344,919.08,918.56,1.233]
[1764803103847,1.07874344,919.04,918.56,1.233]
[1764803104252,1.07874344,919.02,918.56,1.233]
[1764803104453,1.07874344,919.03,918.56,1.233]
[1764803105048,1.07874344,919.04,918.56,1.233]
[1764803105254,1.07874344,919.05,918.56,1.233]
[1764803105552,1.07874344,919.15,918.56,1.233]
[1764803106253,1.07874344,919.14,918.56,1.233]
[1764803107349,1.07874344,919.12,918.56,1.233]
[1764803107748,1.07874344,919.14,918.56,1.233]
[1764803108050,1.07874344,919.15,918.56,1.233]
[1764803108249,1.07874344,919.12,918.56,1.233]
[1764803108450,1.07874344,919.05,918.56,1.233]
[1764803109159,1.07874344,919.04,918.56,1.233]
[1764803110157,1.07874344,919.07,918.56,1.233]
[1764803110350,1.07874344,919.13,918.56,1.233]
[1764803110553,1.07874344,919.16,918.56,1.233]
[1764803110750,1.07874344,919.19,918.56,1.233]
[1764803110951,1.07874344,919.2,918.56,1.233]
[1764803111151,1.07874344,919.23,918.56,1.233]
[1764803111655,1.07874344,919.26,918.56,1.233]
[1764803112358,1.07874344,919.25,918.56,1.233]
[1764803113858,1.07874344,919.27,918.56,1.233]
[1764803116862,1.07874344,919.29,918.56,1.233]
[1764803117462,1.07874344,919.34,918.56,1.233]
[1764803118162,1.07874344,919.35,918.56,1.233]
[1764803122465,1.07874344,919.36,918.56,1.233]
[1764803123866,1.07874344,919.35,918.56,1.233]
[1764803124067,1.07874344,919.26,918.56,1.233]
[1764803124270,1.07874344,919.25,918.56,1.233]
[1764803124469,1.07874344,919.28,918.56,1.233]
[1764803126171,1.07874344,919.27,918.56,1.233]
[1764803126674,1.07874344,919.26,918.56,1.233]
[1764803127069,1.07874344,919.25,918.56,1.233]
[1764803128968,1.07874344,919.23,918.56,1.233]
[1764803129168,0.18929967,919.85,918.56,1.233]
[1764803129169,1.07874344,919.13,918.56,1.233]
[1764803131273,0.18929967,919.85,918.56,1.233]
[1764803131274,1.07874344,919.12,918.56,1.233]
[1764803131474,1.07874344,919.02,918.56,1.233]
[1764803132174,1.07874344,919.01,918.56,1.233]
[1764803134179,1.07874344,919.0,918.56,1.233]
[1764803134385,1.07874344,919.0,917.81,1.339]
[1764803135182,1.07874344,918.98,917.81,1.339]
[1764803136085,1.07874344,918.97,917.81,1.339]
[1764803136280,1.07874344,918.96,917.81,1.339]
[1764803137584,1.07874344,918.97,917.81,1.339]
[1764803138082,1.07874344,918.96,917.82,0.896]
[1764803142088,1.07874344,918.95,917.82,0.896]
[1764803143989,1.07874344,918.93,917.82,0.896]
[1764803144992,1.07874344,918.92,917.82,0.896]
[1764803148091,1.07874344,918.95,917.82,0.896]
[1764803148295,1.07874344,918.97,917.82,0.896]
[1764803149294,1.07874344,918.96,917.82,0.896]
[1764803150194,1.07874344,918.95,917.82,0.896]
[1764803150395,1.07874344,918.83,917.82,0.896]
[1764803150591,1.07874344,918.8,917.82,0.896]
[1764803151192,1.07874344,918.79,917.82,0.896]
[1764803152097,1.07874344,918.78,917.82,0.896]
[1764803153199,1.07874344,918.76,917.82,0.896]
[1764803155098,1.07874344,918.75,917.82,0.896]
[1764803157001,1.07874344,918.66,917.82,0.896]
[1764803157897,1.07874344,918.64,917.82,0.896]
[1764803161905,1.07874344,918.62,917.82,0.896]
[1764803162206,1.07874344,918.62,917.49,0.78604101]
[1764803162599,1.07874344,918.55,917.41,0.78604101]
[1764803163402,1.07874344,918.56,917.4,0.78604101]
[1764803163607,1.07874344,918.55,917.39,0.78604101]
[1764803163804,3.80501533,919.71,917.18,0.18946251]
[1764803163805,1.07874344,918.54,917.41,0.924]
[1764803164303,1.07874344,918.55,917.41,0.924]
[1764803164503,1.07874344,918.56,917.41,0.924]
[1764803165105,1.07874344,918.61,917.43,0.78604101]
[1764803165305,1.07874344,918.61,917.42,0.78604101]
[1764803165705,1.07874344,918.63,917.44,0.78604101]
[1764803166103,1.07874344,918.67,917.47,0.78604101]
[1764803166803,1.07874344,918.7,917.5,0.78604101]
[1764803167103,1.07874344,918.82,917.61,0.78604101]
[1764803167304,1.07874344,918.9,917.7,0.78604101]
[1764803167522,1.07874344,918.94,917.74,0.78604101]
[1764803167807,1.07874344,919.11,917.9,0.78604101]
[1764803168104,1.07874344,919.42,918.21,0.78604101]
[1764803168304,1.07874344,919.43,918.19,0.78604101]
[1764803168507,1.07874344,919.44,918.2,0.78604101]
[1764803168907,1.07874344,919.44,917.45,1.39]
[1764803168908,1.07874344,919.49,918.25,0.78604101]
[1764803169206,1.07874344,919.5,918.23,0.78604101]
[1764803169404,1.07874344,919.49,918.21,0.78604101]
[1764803169607,1.07874344,919.5,918.22,0.78604101]
[1764803169809,1.07874344,919.59,918.32,0.78604101]
[1764803170108,1.07874344,919.45,918.17,0.78604101]
[1764803170311,1.07874344,919.46,918.16,0.78604101]
[1764803170908,1.07874344,919.46,918.15,0.78604101]
[1764803171108,2.71786809,920.29,918.11,0.78604101]
[1764803171109,1.07874344,919.43,918.11,0.78604101]
[1764803172310,1.07874344,919.44,918.11,0.78604101]
[1764803172608,1.07874344,919.29,917.96,0.78604101]
[1764803173009,1.07874344,919.29,917.95,0.78604101]
[1764803174210,1.07874344,919.31,917.97,0.78604101]
[1764803174408,1.07874344,919.38,918.04,0.78604101]
[1764803175010,1.07874344,919.4,918.06,0.78604101]
[1764803175207,1.07874344,919.4,918.05,0.78604101]
[1764803175406,1.07874344,919.44,918.09,0.78604101]
[1764803176108,1.07874344,919.53,918.16,0.78604101]
[1764803176613,1.07874344,919.55,918.17,0.78604101]
[1764803176813,1.07874344,919.57,918.19,0.78604101]
[1764803177312,1.07874344,919.57,918.17,0.78604101]
[1764803177914,1.07874344,919.56,918.17,0.78604101]
[1764803178115,1.07874344,919.56,918.16,0.78604101]
[1764803178410,1.07874344,919.56,918.15,0.78604101]
[1764803178610,1.07874344,919.62,918.2,0.78604101]
[1764803179115,1.07874344,919.61,918.19,0.78604101]
[1764803179310,1.07874344,919.61,918.17,0.78604101]
[1764803180316,1.07874344,919.62,918.17,0.78604101]
[1764803181117,1.07874344,919.61,918.16,0.78604101]
[1764803181316,1.07874344,919.62,918.15,0.78604101]
[1764803181920,1.07874344,919.6,918.13,0.78604101]
[1764803182120,1.07874344,919.61,918.13,0.78604101]
[1764803182320,1.07874344,919.61,918.12,0.78604101]
[1764803183215,1.07874344,919.62,918.12,0.78604101]
[1764803183420,1.07874344,919.64,918.14,0.78604101]
[1764803183917,1.07874344,919.63,918.14,0.78604101]
[1764803184120,1.07874344,919.63,918.12,0.78604101]
[1764803184316,1.07874344,919.62,918.1,0.78604101]
[1764803184613,0.01051193,920.34,918.02,0.78604101]
[1764803184614,1.07874344,919.54,918.02,0.78604101]
[1764803185418,1.07874344,919.51,917.99,0.78604101]
[1764803186115,1.07874344,919.52,917.99,0.78604101]
[1764803186916,1.07874344,919.38,917.85,0.78604101]
[1764803187917,1.07874344,919.36,917.83,0.78604101]
[1764803188116,1.07874344,919.37,917.84,0.78604101]
[1764803188917,1.07874344,919.37,917.83,0.78604101]
[1764803189122,1.07874344,919.34,917.81,0.78604101]
[1764803189322,1.07874344,919.24,917.71,0.78604101]
[1764803192026,1.07874344,919.32,917.79,0.78604101]
[1764803192827,1.07874344,919.39,917.85,0.78604101]
[1764803194128,1.07874344,919.4,917.86,0.78604101]
[1764803194328,1.07874344,919.4,917.69,1.04904749]
[1764803194523,1.07874344,919.4,917.86,0.80552697]
[1764803195528,2.71786809,920.22,917.85,0.80552697]
[1764803195529,1.07874344,919.39,917.85,0.80552697]
[1764803198434,1.07874344,919.36,917.82,0.80552697]
[1764803198631,1.07874344,919.32,917.78,0.80552697]
[1764803199630,1.07874344,919.24,917.71,0.80552697]
[1764803200827,1.07874344,919.23,917.7,0.80552697]
[1764803201531,1.07874344,919.22,917.69,0.80552697]
[1764803201728,1.07874344,919.14,917.61,0.80552697]
[1764803202127,1.07874344,919.14,917.61,0.80620924]
[1764803202828,1.07874344,919.16,917.63,0.80620924]
[1764803203128,1.07874344,919.21,917.68,0.80620924]
[1764803203327,1.07874344,919.24,917.71,0.80620924]
[1764803203929,1.07874344,919.32,917.79,0.80620924]
[1764803204329,1.07874344,919.31,917.79,0.80620924]
[1764803205028,1.07874344,919.33,917.8,0.80620924]
[1764803205231,1.07874344,919.32,917.8,0.80620924]
[1764803205828,1.07874344,919.32,917.81,1.014]
[1764803207032,1.07874344,919.43,917.91,0.80620924]
[1764803207632,1.07874344,919.42,917.9,0.80620924]
[1764803208433,1.07874344,919.49,917.98,0.80620924]
[1764803208732,1.07874344,919.53,918.01,0.80620924]
[1764803208933,1.07874344,919.51,917.99,0.80620924]
[1764803210734,1.07874344,919.51,917.98,0.80620924]
[1764803211035,1.07874344,919.65,918.13,0.80620924]
[1764803211333,1.07874344,919.68,918.15,0.80620924]
[1764803212330,1.07874344,919.72,918.19,0.80620924]
[1764803212633,1.07874344,919.73,918.2,0.80620924]
[1764803213030,1.07874344,919.76,918.23,0.80620924]
[1764803213334,1.07874344,919.82,918.28,0.80620924]
[1764803213830,1.07874344,919.79,918.25,0.80620924]
[1764803214034,1.07874344,919.78,918.24,0.80620924]
[1764803214735,1.07874344,919.76,918.22,0.80620924]
[1764803216138,1.07874344,919.59,918.06,0.80620924]
[1764803217234,1.07874344,919.58,918.07,0.80620924]
[1764803217439,1.07874344,919.56,918.05,0.80620924]
[1764803217739,1.07874344,919.57,918.06,0.80620924]
[1764803218139,1.07874344,919.55,918.07,0.80620924]
[1764803218639,1.07874344,919.54,918.05,0.80620924]
[1764803218840,1.07874344,919.49,918.0,0.80620924]
[1764803219336,1.07874344,919.47,918.01,0.80620924]
[1764803220342,1.07874344,919.56,918.1,0.80620924]
[1764803221244,1.07874344,919.57,918.14,0.80620924]
[1764803221444,1.07874344,919.6,918.16,0.80620924]
[1764803221745,1.07874344,919.65,918.21,0.80620924]
[1764803221943,1.07874344,919.74,918.3,0.80620924]
[1764803222146,1.07874344,919.73,918.32,0.80620924]
[1764803222443,1.07874344,919.73,918.31,0.80620924]
[1764803222743,1.07874344,919.72,918.3,0.80620924]
[1764803223246,1.07874344,919.7,918.32,0.80620924]
[1764803223546,1.07874344,919.54,918.16,0.80620924]
[1764803224343,1.07874344,919.53,918.21,0.80620924]
[1764803225346,1.07874344,919.5,918.23,0.80620924]
[1764803225643,1.07874344,919.48,918.21,0.80620924]
[1764803225942,1.07874344,919.51,918.25,0.80620924]
[1764803226148,1.07874344,919.49,918.27,0.80620924]
[1764803226444,1.07874344,919.53,918.31,0.80620924]
[1764803227144,1.07874344,919.54,918.35,0.80620924]
[1764803227345,1.07874344,919.56,918.37,0.80620924]
[1764803227644,1.07874344,919.55,918.36,0.80620924]
[1764803228648,1.07874344,919.56,918.36,0.80620924]
[1764803229349,1.07874344,919.59,918.38,0.80620924]
[1764803229548,1.07874344,919.91,918.7,0.80620924]
[1764803229745,1.07874344,919.93,918.72,0.80620924]
[1764803230051,1.07874344,919.92,918.71,0.80620924]
[1764803230543,1.07874344,919.92,918.54,1.04904749]
[1764803230544,1.07874344,919.92,918.67,0.80620924]
[1764803230748,1.07874344,919.89,918.63,0.80620924]
[1764803231047,1.07874344,919.88,918.63,0.80620924]
[1764803231248,1.07874344,919.88,918.62,0.80620924]
[1764803231544,1.07874344,919.89,918.6,0.80620924]
[1764803232249,1.07874344,919.89,918.61,1.085]
[1764803232443,1.07874344,919.94,918.62,0.80620924]
[1764803232643,1.07874344,919.94,918.61,1.89120924]
[1764803232948,1.07874344,919.91,918.61,1.085]
[1764803233549,1.07874344,919.92,918.61,1.085]
[1764803234052,1.07874344,919.91,918.61,1.085]
[1764803234349,1.07874344,919.93,918.61,1.085]
[1764803234550,1.07874344,919.87,918.61,1.085]
[1764803234749,1.07874344,919.85,918.61,1.085]
[1764803234946,1.07874344,919.8,918.61,1.085]
[1764803235550,1.07874344,919.75,918.61,1.085]
[1764803236249,1.07874344,919.71,918.61,1.085]
[1764803236450,1.07874344,919.65,918.61,1.085]
[1764803238152,1.07874344,919.66,918.61,1.085]
[1764803238549,1.07874344,919.65,918.61,1.085]
[1764803239253,1.07874344,919.66,918.61,1.085]
[1764803239454,1.07874344,919.53,918.61,1.085]
[1764803240855,1.07874344,919.51,918.61,1.085]
[1764803241053,1.07874344,919.52,918.61,1.085]
[1764803243955,1.07874344,919.54,918.61,1.085]
[1764803244356,1.07874344,919.55,918.61,1.085]
[1764803244856,1.07874344,919.61,918.61,1.085]
[1764803245062,1.07874344,919.62,918.61,1.085]
[1764803245360,1.07874344,919.67,918.61,1.085]
[1764803246759,1.07874344,919.72,918.61,1.085]
[1764803248063,1.07874344,919.71,918.61,1.085]